fUST/lending_fUST_20251014
["ID","MTS","AMOUNT","RATE_DAILY","PERIOD"]
[391126215,1760373039592,-229.32809504,0.00027174,14]
[391126216,1760373039602,-17883.62,0.000272,7]
[391126217,1760373039610,-1000.0,0.00027298,2]
[391126218,1760373039619,-9634.99,0.00027397,4]
[391126219,1760373039629,-154.73097799,0.00027397,2]
[391126220,1760373039638,-200.32847528,0.00027397,5]
[391126221,1760373039647,-823.0,0.00027398,2]
[391126223,1760373039657,-1000.0,0.00027459,5]
[391126224,1760373039666,-204.02726922,0.00027463,2]
[391126225,1760373039675,-1084.877,0.00027472,2]
[391126226,1760373039684,-411.0,0.00027472,2]
[391126227,1760373039693,-153.0,0.00027473,2]
[391126228,1760373039702,-153.0,0.00027473,2]
[391126230,1760373039711,-153.0,0.00027473,2]
[391126232,1760373039720,-153.0,0.00027473,2]
[391126234,1760373039729,-153.0,0.00027473,2]
[391126235,1760373039739,-153.0,0.00027473,2]
[391126236,1760373039747,-153.0,0.00027473,2]
[391126237,1760373039756,-153.0,0.00027473,2]
[391126238,1760373039766,-153.0,0.00027473,2]
[391126240,1760373039775,-153.0,0.00027473,2]
[391126241,1760373039784,-153.0,0.00027473,2]
[391126242,1760373039793,-153.0,0.00027473,2]
[391126243,1760373039802,-153.0,0.00027473,2]
[391126244,1760373039812,-153.0,0.00027473,2]
[391126246,1760373039822,-153.0,0.00027473,2]
[391126248,1760373039831,-229.32809504,0.0002749,18]
[391126250,1760373039840,-229.32809504,0.0002749,18]
[391126252,1760373039849,-150.0,0.00027603,2]
[391126253,1760373039857,-556.0,0.00027788,2]
[391126254,1760373039866,-1500.0,0.00027846,5]
[391126255,1760373039875,-3516.19727806,0.00027903,2]
[391126256,1760373039884,-976.43201705,0.00027917,5]
[391126257,1760373039901,-1000.0,0.00028,2]
[391126258,1760373039914,-612.23536578,0.00028007,5]
[391126259,1760373039923,-2483.10260772,0.000282,7]
[391126260,1760373039933,-2000.0,0.00028394,5]
[391126261,1760373039942,-271.43657043,0.00028712,2]
[391126262,1760373039951,-500.0,0.0002876,7]
[391126263,1760373039960,-9634.99,0.00028767,6]
[391126264,1760373039970,-151.0,0.00028767,30]
[391126265,1760373039980,-408.05453844,0.00028768,2]
[391126266,1760373039989,-92563.02305532,0.00028778,120]
[391126267,1760373039998,-157.977146,0.00028786,4]
[391126268,1760373040008,-151.0,0.000289,17]
[391126269,1760373040018,-1000.0,0.00028927,30]
[391126270,1760373040027,-2500.0,0.00028942,5]
[391126271,1760373040036,-4710.37447539,0.00029,120]
[391126272,1760373040045,-3516.19727806,0.00029157,2]
[391126273,1760373040055,-25530.88,0.0002918,3]
[391126274,1760373040064,-151.0,0.000294,18]
[391126275,1760373040082,-807.25377439,0.00029448,2]
[391126276,1760373040095,-204.02726922,0.00029467,2]
[391126277,1760373040107,-552.9877452,0.00029477,2]
[391126278,1760373040120,-24620.608259,0.00029477,2]
[391126279,1760373040131,-5051.8946344,0.00029477,2]
[391126280,1760373040143,-500.0,0.00029477,30]
[391126281,1760373040155,-500.0,0.00029477,30]
[391126282,1760373040166,-500.0,0.00029477,30]
[391126283,1760373040177,-500.0,0.00029477,30]
[391126284,1760373040187,-500.0,0.00029477,30]
[391126285,1760373040198,-500.0,0.00029477,30]
[391126286,1760373040209,-500.0,0.00029477,30]
[391126287,1760373040221,-500.0,0.00029477,30]
[391126288,1760373040233,-500.0,0.00029477,30]
[391126289,1760373040244,-500.0,0.00029477,30]
[391126290,1760373040255,-500.0,0.00029477,30]
[391126291,1760373040266,-500.0,0.00029477,30]
[391126292,1760373040277,-500.0,0.00029477,30]
[391126293,1760373040288,-500.0,0.00029477,30]
[391126294,1760373040298,-500.0,0.00029477,30]
[391126295,1760373040309,-500.0,0.00029477,30]
[391126296,1760373040319,-500.0,0.00029477,30]
[391126297,1760373040333,-500.0,0.00029477,30]
[391126298,1760373040344,-500.0,0.00029477,30]
[391126299,1760373040355,-500.0,0.00029477,30]
[391126300,1760373040366,-3000.0,0.0002949,5]
[391126301,1760373040377,-784.011548,0.00029562,30]
[391126302,1760373040388,-150.0,0.000296,10]
[391126303,1760373040400,-152.0,0.00029601,7]
[391126304,1760373040412,-152.0,0.00029601,7]
[391126305,1760373040424,-162.0,0.00029601,7]
[391126306,1760373040436,-162.0,0.00029601,7]
[391126307,1760373040447,-152.0,0.00029601,7]
[391126308,1760373040460,-152.0,0.00029601,7]
[391126309,1760373040471,-162.0,0.00029601,7]
[391126310,1760373040481,-152.0,0.00029601,7]
[391126311,1760373040490,-162.0,0.00029601,7]
[391126312,1760373040501,-152.0,0.00029601,7]
[391126313,1760373040512,-330.0,0.00029601,7]
[391126314,1760373040522,-165.286418,0.00029601,7]
[391126315,1760373040536,-330.0,0.00029601,7]
[391126316,1760373040547,-152.0,0.00029601,7]
[391126317,1760373040558,-330.0,0.00029601,7]
[391126318,1760373040572,-152.0,0.00029601,7]
[391126319,1760373040582,-330.0,0.00029601,7]
[391126320,1760373040592,-152.0,0.00029601,7]
[391126321,1760373040603,-330.0,0.00029601,7]
[391126322,1760373040613,-330.0,0.00029601,7]
[391126323,1760373040623,-152.0,0.00029601,7]
[391126324,1760373040633,-330.0,0.00029601,7]
[391126325,1760373040644,-152.0,0.00029601,7]
[391126326,1760373040656,-330.0,0.00029601,7]
[391126327,1760373040667,-152.0,0.00029601,7]
[391126328,1760373040677,-330.0,0.00029601,7]
[391126329,1760373040687,-152.0,0.00029601,7]
[391126330,1760373040697,-330.0,0.00029601,7]
[391126331,1760373040706,-152.0,0.00029601,7]
[391126332,1760373040715,-162.95094999,0.00029601,7]
[391126333,1760373040724,-152.0,0.00029601,7]
[391126334,1760373040733,-152.0,0.00029601,7]
[391126335,1760373040742,-152.0,0.00029601,7]
[391126336,1760373040752,-152.0,0.00029601,7]
[391126337,1760373040762,-152.0,0.00029601,7]
[391126338,1760373040774,-152.0,0.00029601,7]
[391126339,1760373040785,-152.0,0.00029601,7]
[391126340,1760373040795,-152.0,0.00029601,7]
[391126341,1760373040806,-152.0,0.00029601,7]
[391126342,1760373040818,-152.0,0.00029601,7]
[391126343,1760373040830,-152.0,0.00029601,7]
[391126344,1760373040841,-152.0,0.00029601,7]
[391126345,1760373040852,-152.0,0.00029601,7]
[391126346,1760373040863,-152.0,0.00029601,7]
[391126347,1760373040875,-152.0,0.00029601,7]
[391126348,1760373040888,-152.0,0.00029601,7]
[391126349,1760373040899,-152.0,0.00029601,7]
[391126350,1760373040914,-152.0,0.00029601,7]
[391126351,1760373040924,-152.0,0.00029601,7]
[391126352,1760373040935,-152.0,0.00029601,7]
[391126353,1760373040946,-152.0,0.00029601,7]
[391126354,1760373040957,-152.0,0.00029601,7]
[391126355,1760373040967,-152.0,0.00029601,7]
[391126356,1760373040977,-152.0,0.00029601,7]
[391126357,1760373040988,-152.0,0.00029601,7]
[391126358,1760373040999,-152.0,0.00029601,7]
[391126359,1760373041010,-152.0,0.00029601,7]
[391126360,1760373041020,-152.0,0.00029601,7]
[391126361,1760373041030,-152.0,0.00029601,7]
[391126362,1760373041039,-258.10495894,0.00029601,7]
[391126363,1760373041049,-151.0,0.00029601,30]
[391126364,1760373041058,-1701.53528649,0.00029601,2]
[391126365,1760373041073,-8915.79020085,0.00029601,2]
[391126370,1760373043051,-818.48104579,0.00024657,2]
[391126371,1760373043212,-1225.81895421,0.00024657,2]
[391126372,1760373043224,-2044.3,0.00024657,2]
[391126373,1760373043235,-2044.3,0.00024657,2]
[391126374,1760373043248,-2044.3,0.00024657,2]
[391126375,1760373043260,-2044.3,0.00024657,2]
[391126376,1760373043272,-2044.3,0.00024657,2]
[391126377,1760373043283,-2044.3,0.00024657,2]
[391126378,1760373043294,-5415.31024107,0.00029601,2]
[391126398,1760373046159,-596.58,0.00029591,10]
[391126399,1760373046170,-116665.1104127,0.00029601,2]
[391126457,1760374100013,2000.0,0.0002097,2]
[391126458,1760374179562,170853.23859962,0.00027,120]
[391126485,1760374232067,-702.107556,0.00024062,2]
[391126487,1760374232077,-150.0,0.00024062,2]
[391126489,1760374232086,-2701.07049351,0.00024546,2]
[391126491,1760374232094,-1200.0,0.00024597,2]
[391126493,1760374232103,-1200.0,0.00024598,2]
[391126495,1760374232112,-270.0,0.00024598,2]
[391126497,1760374232121,-300.0,0.00024598,2]
[391126499,1760374232131,-300.0,0.00024598,2]
[391126501,1760374232140,-2643.56744559,0.000246,2]
[391126503,1760374232151,-1245.10276993,0.000246,2]
[391126505,1760374232163,-1319.39783097,0.000246,2]
[391126507,1760374232174,-1014.77800709,0.000246,2]
[391126509,1760374232185,-3827.25718664,0.000246,2]
[391126512,1760374232202,-1478.71656196,0.000246,2]
[391126515,1760374232213,-282.34546992,0.000246,2]
[391126518,1760374232224,-713.96033753,0.000246,2]
[391126521,1760374232235,-727.6,0.000246,2]
[391126524,1760374232246,-2440.12534053,0.000246,2]
[391126527,1760374232257,-682.79400798,0.000246,2]
[391126530,1760374232272,-1777.22561697,0.000246,2]
[391126765,1760374238119,-758.52331668,0.000246,2]
[391126766,1760374238173,-17830.78379347,0.000246,2]
[391126767,1760374238227,-4849.82231474,0.000246,2]
[391126768,1760374238237,-160.0,0.00024644,2]
[391126769,1760374238247,-500.0,0.00024656,2]
[391126770,1760374238256,-704.9997,0.00024656,2]
[391126771,1760374238266,-215.73704145,0.00024656,2]
[391126772,1760374238276,-291.42997863,0.00024656,2]
[391126773,1760374238285,-256.52132087,0.00024656,2]
[391126774,1760374238295,-704.9997,0.00024656,2]
[391126775,1760374238305,-294.13574166,0.00024656,2]
[391126776,1760374238315,-704.9997,0.00024656,2]
[391126777,1760374238325,-704.9997,0.00024656,2]
[391126778,1760374238335,-500.0,0.00024656,2]
[391126779,1760374238344,-704.9997,0.00024656,2]
[391126780,1760374238353,-704.9997,0.00024656,2]
[391126781,1760374238362,-704.9997,0.00024656,2]
[391126782,1760374238372,-704.9997,0.00024656,2]
[391126783,1760374238382,-704.9997,0.00024656,2]
[391126784,1760374238391,-704.9997,0.00024656,2]
[391126785,1760374238405,-704.9997,0.00024656,2]
[391126786,1760374238415,-704.9997,0.00024656,2]
[391126787,1760374238424,-704.9997,0.00024656,2]
[391126788,1760374238433,-704.9997,0.00024656,2]
[391126789,1760374238443,-704.9997,0.00024656,2]
[391126790,1760374238452,-704.9997,0.00024656,2]
[391126791,1760374238461,-704.9997,0.00024656,2]
[391126792,1760374238472,-704.9997,0.00024656,2]
[391126793,1760374238481,-704.9997,0.00024656,2]
[391126794,1760374238492,-704.9997,0.00024656,2]
[391126795,1760374238501,-704.9997,0.00024656,2]
[391126796,1760374238511,-704.9997,0.00024656,2]
[391126797,1760374238521,-704.9997,0.00024656,2]
[391126798,1760374238531,-704.9997,0.00024656,2]
[391126799,1760374238540,-704.9997,0.00024656,2]
[391126800,1760374238550,-704.9997,0.00024656,2]
[391126801,1760374238560,-704.9997,0.00024656,2]
[391126802,1760374238569,-704.9997,0.00024656,2]
[391126803,1760374238579,-704.9997,0.00024656,2]
[391126804,1760374238588,-704.9997,0.00024656,2]
[391126805,1760374238597,-704.9997,0.00024656,2]
[391126806,1760374238607,-704.9997,0.00024656,2]
[391126807,1760374238616,-704.9997,0.00024656,2]
[391126808,1760374238626,-704.9997,0.00024656,2]
[391126809,1760374238635,-704.9997,0.00024656,2]
[391126810,1760374238644,-704.9997,0.00024656,2]
[391126811,1760374238659,-704.9997,0.00024656,2]
[391126812,1760374238669,-704.9997,0.00024656,2]
[391126813,1760374238679,-704.9997,0.00024656,2]
[391126814,1760374238689,-704.9997,0.00024656,2]
[391126815,1760374238698,-704.9997,0.00024656,2]
[391126816,1760374238708,-704.9997,0.00024656,2]
[391126817,1760374238718,-704.9997,0.00024656,2]
[391126818,1760374238727,-704.9997,0.00024656,2]
[391126819,1760374238737,-704.9997,0.00024656,2]
[391126820,1760374238747,-704.9997,0.00024656,2]
[391126821,1760374238762,-704.9997,0.00024656,2]
[391126822,1760374238772,-704.9997,0.00024656,2]
[391126823,1760374238781,-704.9997,0.00024656,2]
[391126824,1760374238791,-704.9997,0.00024656,2]
[391126825,1760374238802,-704.9997,0.00024656,2]
[391126826,1760374238812,-704.9997,0.00024656,2]
[391126827,1760374238821,-704.9997,0.00024656,2]
[391126828,1760374238832,-704.9997,0.00024656,2]
[391126829,1760374238841,-704.9997,0.00024656,2]
[391126830,1760374238850,-704.9997,0.00024656,2]
[391126831,1760374238860,-704.9997,0.00024656,2]
[391126832,1760374238871,-704.9997,0.00024656,2]
[391126833,1760374238880,-704.9997,0.00024656,2]
[391126834,1760374238889,-704.9997,0.00024656,2]
[391126835,1760374238901,-704.9997,0.00024656,2]
[391126836,1760374238911,-704.9997,0.00024656,2]
[391126837,1760374238920,-704.9997,0.00024656,2]
[391126838,1760374238930,-500.0,0.00024657,2]
[391126839,1760374238940,-557.64140849,0.00024657,2]
[391126840,1760374238951,-500.0,0.00024657,2]
[391126841,1760374238960,-500.0,0.00024657,2]
[391126842,1760374238970,-500.0,0.00024657,2]
[391126843,1760374238979,-500.0,0.00024657,2]
[391126844,1760374238989,-500.0,0.00024657,2]
[391126845,1760374238999,-500.0,0.00024657,2]
[391126846,1760374239009,-500.0,0.00024657,2]
[391126847,1760374239019,-500.0,0.00024657,2]
[391126848,1760374239028,-500.0,0.00024657,2]
[391126849,1760374239038,-500.0,0.00024657,2]
[391126850,1760374239049,-500.0,0.00024657,2]
[391126851,1760374239059,-500.0,0.00024657,2]
[391126852,1760374239068,-500.0,0.00024657,2]
[391126853,1760374239079,-500.0,0.00024657,2]
[391126854,1760374239088,-500.0,0.00024657,2]
[391126855,1760374239098,-500.0,0.00024657,2]
[391126856,1760374239107,-177.424194,0.00024657,2]
[391126857,1760374239116,-172.5,0.00024662,2]
[391126858,1760374239126,-300.0,0.00025149,20]
[391126859,1760374239135,-300.0,0.00025149,20]
[391126860,1760374239144,-300.0,0.00025149,20]
[391126861,1760374239157,-300.0,0.00025149,20]
[391126862,1760374239166,-300.0,0.00025149,20]
[391126863,1760374239176,-300.0,0.00025149,20]
[391126864,1760374239186,-300.0,0.00025149,20]
[391126865,1760374239196,-300.0,0.00025149,20]
[391126866,1760374239205,-300.0,0.00025149,20]
[391126867,1760374239215,-300.0,0.00025149,20]
[391126868,1760374239224,-300.0,0.00025149,20]
[391126869,1760374239234,-300.0,0.00025149,20]
[391126870,1760374239243,-300.0,0.00025149,20]
[391126871,1760374239252,-300.0,0.00025149,20]
[391126872,1760374239262,-300.0,0.00025149,20]
[391126873,1760374239272,-202.51054319,0.00025205,7]
[391126874,1760374239282,-195.0,0.00025262,2]
[391126875,1760374239291,-870.7,0.0002535,10]
[391126876,1760374239301,-41761.1567269,0.00025361,2]
[391126877,1760374239310,-2701.07049349,0.00025381,2]
[391126878,1760374239320,-1000.0,0.00025506,30]
[391126879,1760374239329,-600.0,0.00025651,20]
[391126880,1760374239443,-204.08497015,0.00025862,2]
[391126881,1760374239453,-160.0,0.00025956,2]
[391126882,1760374239462,-160.0,0.00025956,2]
[391126883,1760374239472,-160.0,0.00025956,2]
[391126884,1760374239483,-402.34485587,0.00025956,2]
[391126885,1760374239493,-160.0,0.00026,2]
[391126886,1760374239502,-177.90835514,0.00026,2]
[391126887,1760374239511,-163.98912605,0.00026,2]
[391126888,1760374239520,-321.5561281,0.00026026,2]
[391126889,1760374239529,-9634.99,0.00026027,2]
[391126890,1760374239538,-160.0,0.000262,2]
[391126891,1760374239548,-163.98912605,0.000262,2]
[391126892,1760374239558,-2701.07049349,0.00026216,2]
[391126893,1760374239568,-160.0,0.00026314,3]
[391126894,1760374239579,-206.98696686,0.00026474,2]
[391126895,1760374239588,-160.0,0.000265,2]
[391126896,1760374239598,-163.98912605,0.000265,2]
[391126897,1760374239607,-1455.87,0.00026554,3]
[391126898,1760374239616,-727.94,0.00026554,3]
[391126899,1760374239625,-363.97,0.00026554,3]
[391126900,1760374239635,-213.04992668,0.00026574,2]
[391126901,1760374239644,-420.0,0.00026659,2]
[391126902,1760374239655,-160.0,0.000267,2]
[391126903,1760374239664,-163.98912605,0.000267,2]
[391126904,1760374239674,-1680.0,0.00026779,2]
[391126905,1760374239683,-160.0,0.00027,2]
[391126906,1760374239692,-163.98912605,0.00027,2]
[391126907,1760374239701,-187.46165754,0.00027044,2]
[391126908,1760374239710,-2701.07049349,0.00027051,2]
[391126909,1760374239719,-206.98696686,0.00027209,2]
[391126910,1760374239729,-153.0,0.00027384,2]
[391126911,1760374239739,-153.0,0.00027384,2]
[391126912,1760374239753,-153.0,0.00027384,2]
[391126913,1760374239763,-153.0,0.00027384,2]
[391126914,1760374239772,-153.0,0.00027384,2]
[391126915,1760374239783,-153.0,0.00027384,2]
[391126916,1760374239795,-153.0,0.00027384,2]
[391126917,1760374239805,-153.0,0.00027384,2]
[391126918,1760374239821,-153.0,0.00027384,2]
[391126919,1760374239834,-153.0,0.00027384,2]
[391126920,1760374239843,-153.0,0.00027384,2]
[391126921,1760374239853,-153.0,0.00027384,2]
[391126922,1760374239862,-153.0,0.00027384,2]
[391126923,1760374239871,-153.0,0.00027384,2]
[391126924,1760374239880,-153.0,0.00027384,2]
[391126925,1760374239889,-9634.99,0.00027397,4]
[391126926,1760374239899,-154.73097799,0.00027397,2]
[391126927,1760374239909,-309.34206886,0.00027412,2]
[391126928,1760374239918,-1084.877,0.00027416,2]
[391126929,1760374239927,-411.0,0.00027416,2]
[391126930,1760374239936,-150.0,0.00027574,2]
[391126931,1760374239946,-249.12919324,0.00027746,30]
[391126932,1760374239955,-2701.07049349,0.00027887,2]
[391126933,1760374239964,-2911.74,0.00027924,3]
[391126934,1760374239972,-1455.88,0.00027924,3]
[391126935,1760374239982,-727.94,0.00027924,3]
[391126936,1760374239991,-976.43201705,0.00027944,5]
[391126937,1760374240000,-206.98696686,0.00027945,2]
[391126939,1760374240009,-169.5172239,0.00028183,2]
[391126941,1760374240019,-41761.1567269,0.00028207,2]
[391126943,1760374240028,-720.0,0.00028216,30]
[391126945,1760374240037,-2483.10260772,0.00028305,7]
[391126947,1760374240046,-160.0,0.00028349,4]
[391126949,1760374240056,-206.98696686,0.0002868,2]
[391126951,1760374240065,-14589.1,0.0002869,3]
[391126953,1760374240074,-271.43657043,0.00028712,2]
[391126955,1760374240083,-2701.07049349,0.00028722,2]
[391126957,1760374240092,-500.0,0.0002876,7]
[391126959,1760374240101,-9634.99,0.00028767,6]
[391126961,1760374240110,-379.3281924,0.00028877,30]
[391126963,1760374240119,-587.0,0.00028892,2]
[391126965,1760374240129,-181.98,0.0002899,3]
[391126967,1760374240138,-545.98,0.0002899,3]
[391126969,1760374240148,-120934.49139007,0.0002899,2]
[391126999,1760374917975,-281.45150855,0.0002124,2]
[391127000,1760374919574,-310.27732703,0.0002124,2]
[391127001,1760374923089,-330.01073945,0.0002124,2]
[391127002,1760374926080,-334.08815326,0.0002124,2]
[391127003,1760374930576,-244.48501313,0.0002124,2]
[391127004,1760374946680,-325.13267759,0.0002124,2]
[391127005,1760374949166,-432.72455755,0.0002124,2]
[391127006,1760374952112,-385.13824296,0.0002124,2]
[391127007,1760374953871,-156.85554625,0.0002124,2]
[391127008,1760374956398,-202.52253902,0.0002124,2]
[391127009,1760374957837,-322.5,0.0002124,2]
[391127010,1760374960264,-202.33201336,0.0002124,2]
[391127011,1760374976727,-300.0,0.0002124,2]
[391127012,1760374980104,-200.0,0.0002124,2]
[391127013,1760375093754,4649.99685109,0.00020972,2]
[391127014,1760375192209,302.51602579,0.00020867,6]
[391127016,1760375235673,312.101177,0.00013699,2]
[391127017,1760375235876,312.101177,0.00020187,2]
[391127051,1760375432257,-250.0,0.00023662,2]
[391127053,1760375432268,-150.0,0.00023662,2]
[391127055,1760375432279,-172.5,0.00024262,2]
[391127057,1760375432290,-160.0,0.00024399,2]
[391127059,1760375432300,-229.32809504,0.00024653,2]
[391127061,1760375432310,-229.32809504,0.00024653,2]
[391127063,1760375432320,-3.52715792,0.00024862,2]
[391127067,1760375432347,-191.47284208,0.00024862,2]
[391127069,1760375432357,-494.09100309,0.00024921,2]
[391127112,1760375438459,-163.97118609,0.00024849,2]
[391127114,1760375438468,-1880.90776381,0.00024921,2]
[391127116,1760375438482,-229.32809504,0.00024949,6]
[391127118,1760375438492,-229.32809504,0.00024949,6]
[391127120,1760375438503,-1195.0,0.00024958,2]
[391127122,1760375438513,-1200.0,0.00024958,2]
[391127124,1760375438523,-300.0,0.00024959,2]
[391127126,1760375438534,-14854.3,0.0002496,3]
[391127129,1760375438545,-1544.77222365,0.0002499,2]
[391127131,1760375438557,-579.05783322,0.00025021,2]
[391127133,1760375438568,-300.0,0.00025148,20]
[391127134,1760375438578,-300.0,0.00025148,20]
[391127136,1760375438590,-300.0,0.00025148,20]
[391127138,1760375438600,-300.0,0.00025148,20]
[391127140,1760375438609,-300.0,0.00025148,20]
[391127141,1760375438619,-300.0,0.00025148,20]
[391127142,1760375438629,-300.0,0.00025148,20]
[391127143,1760375438639,-300.0,0.00025148,20]
[391127144,1760375438648,-300.0,0.00025148,20]
[391127145,1760375438660,-300.0,0.00025148,20]
[391127146,1760375438670,-300.0,0.00025148,20]
[391127147,1760375438681,-300.0,0.00025148,20]
[391127148,1760375438692,-300.0,0.00025148,20]
[391127149,1760375438703,-300.0,0.00025148,20]
[391127150,1760375438713,-300.0,0.00025148,20]
[391127151,1760375438724,-600.0,0.00025148,20]
[391127152,1760375438735,-418.99432164,0.000252,2]
[391127153,1760375438746,-1364.88,0.0002524,3]
[391127154,1760375438756,-773.43,0.0002524,3]
[391127155,1760375438766,-386.72,0.0002524,3]
[391127156,1760375438777,-193.36,0.0002524,3]
[391127157,1760375438787,-580.09,0.0002524,3]
[391127158,1760375438797,-229.32809504,0.00025246,10]
[391127159,1760375438807,-202.51054319,0.00025249,7]
[391127160,1760375438818,-213.04992668,0.00025249,2]
[391127161,1760375438827,-500.0,0.00025249,2]
[391127162,1760375438837,-283.09303502,0.00025249,2]
[391127163,1760375438847,-500.0,0.00025249,2]
[391127164,1760375438857,-500.0,0.00025249,2]
[391127165,1760375438867,-500.0,0.00025249,2]
[391127166,1760375438877,-500.0,0.00025249,2]
[391127167,1760375438888,-500.0,0.00025249,2]
[391127168,1760375438898,-500.0,0.00025249,2]
[391127169,1760375438908,-500.0,0.00025249,2]
[391127170,1760375438918,-500.0,0.00025249,2]
[391127171,1760375438928,-476.49001,0.00025249,2]
[391127172,1760375438938,-500.0,0.00025249,2]
[391127173,1760375438948,-500.0,0.00025249,2]
[391127174,1760375438958,-500.0,0.00025249,2]
[391127175,1760375438969,-500.0,0.00025249,2]
[391127176,1760375438982,-500.0,0.00025249,2]
[391127177,1760375438992,-500.0,0.00025249,2]
[391127178,1760375439003,-500.0,0.00025249,2]
[391127179,1760375439166,-500.0,0.00025249,2]
[391127180,1760375439177,-500.0,0.00025249,2]
[391127181,1760375439187,-500.0,0.00025249,2]
[391127182,1760375439197,-500.0,0.00025249,2]
[391127183,1760375439206,-500.0,0.00025249,2]
[391127184,1760375439216,-500.0,0.00025249,2]
[391127185,1760375439227,-500.0,0.00025249,2]
[391127186,1760375439236,-500.0,0.00025249,2]
[391127187,1760375439246,-500.0,0.00025249,2]
[391127188,1760375439256,-500.0,0.00025249,2]
[391127189,1760375439265,-500.0,0.00025249,2]
[391127190,1760375439275,-500.0,0.00025249,2]
[391127191,1760375439284,-500.0,0.00025249,2]
[391127192,1760375439293,-500.0,0.00025249,2]
[391127193,1760375439303,-500.0,0.00025249,2]
[391127194,1760375439312,-500.0,0.00025249,2]
[391127195,1760375439321,-500.0,0.00025249,2]
[391127196,1760375439330,-500.0,0.00025249,2]
[391127197,1760375439339,-500.0,0.00025249,2]
[391127198,1760375439348,-500.0,0.00025249,2]
[391127199,1760375439357,-500.0,0.00025249,2]
[391127200,1760375439366,-500.0,0.00025249,2]
[391127201,1760375439375,-500.0,0.00025249,2]
[391127202,1760375439384,-500.0,0.00025249,2]
[391127203,1760375439393,-500.0,0.00025249,2]
[391127204,1760375439403,-13572.3759361,0.0002525,2]
[391127205,1760375439412,-408.05453844,0.0002525,2]
[391127206,1760375439422,-419.9,0.0002525,10]
[391127207,1760375439432,-800.71,0.0002525,10]
[391127208,1760375439444,-321.5561281,0.00025259,2]
[391127209,1760375439453,-226369.72536621,0.0002526,2]
[391127210,1760375439466,-39050.76995759,0.0002526,2]
[391127230,1760375440189,-3113.5914584,0.0002526,2]
[391127233,1760375440201,-51742.5245205,0.0002526,2]
[391127257,1760375440427,-3e-08,0.0002526,2]
[391127343,1760375446300,-631.46309091,0.0002525,10]
[391127344,1760375446354,-35.79690909,0.0002525,10]
[391127345,1760375446363,-251.55809091,0.0002526,2]
[391127431,1760376632529,-200.0,0.00023518,2]
[391127433,1760376632539,-666.0,0.00023618,2]
[391127435,1760376632548,-150.0,0.00023618,2]
[391127437,1760376632557,-160.0,0.00023965,2]
[391127439,1760376632566,-333.667753,0.00023967,2]
[391127441,1760376632576,-5336.99793241,0.00023972,2]
[391127443,1760376632585,-229.0,0.00023973,11]
[391127446,1760376632594,-1544.77222365,0.0002399,2]
[391127448,1760376632603,-1200.0,0.0002413,2]
[391127451,1760376632612,-300.0,0.00024131,2]
[391127453,1760376632622,-988.36,0.00024132,10]
[391127456,1760376632631,-823.63,0.00024132,10]
[391127457,1760376632640,-52021.18419486,0.00024142,2]
[391127459,1760376632651,-532.14618595,0.00024142,2]
[391127465,1760376632690,-476.85797802,0.00024142,2]
[391127467,1760376632700,-2380.53516283,0.00024142,2]
[391127495,1760376638460,-276.30539383,0.00024141,2]
[391127496,1760376638472,-500.0,0.00024141,2]